Cogmind - Beta 17.1 @@@ ROGUE MODE // 2026.08.25 @ 13:26:23 Player: obl-vn Result: Self-destructed Performance ------------- Evolutions (2) 1000 Regions Visited (3) 600 Robots Destroyed (30) 150 Value Destroyed (999) 999 Prototype IDs (6) 120 Alien Tech Used (0) 0 Bonus (5500) 5500 TOTAL SCORE: 8369 Bonus ------- Prayed to X0-1V1 5000 Major X0-1V1 Interference 500 Cogmind --------- Core Integrity 213/300 Matter 96/300 Energy 45/100 System Corruption 0% Temperature Cool (21) Movement Treading (160) Location -8/Materials Parts ------- > --- POWER (1) -------- (None) > --- PROPULSION (2) --- Light Treads Light Treads > --- UTILITY (6) ------ Heat Sink Large Storage Unit Core Shielding Hardened Medium Armor Plating Self-contained Transmogrifier > --- WEAPON (2) ------- Beam Rifle Particle Gun > --- INVENTORY (15) --- Improved Ion Engine Improved Ion Engine Improved Ion Engine Light Treads Light Treads Huge Storage Unit Core Shielding X0-1V1's Piety Tracker Grenade Launcher Grenade Launcher Peak State ------------ > --- POWER ------------ Improved Ion Engine > --- PROPULSION ------- Light Treads Light Treads > --- UTILITY ---------- Large Storage Unit Core Shielding Light Armor Plating Hardened Medium Armor Plating Self-contained Transmogrifier > --- WEAPON ----------- Beam Rifle Particle Gun > --- INVENTORY -------- Improved Ion Engine Improved Ion Engine Light Treads Light Treads Heat Sink Huge Storage Unit Core Shielding X0-1V1's Piety Tracker Grenade Launcher Grenade Launcher [Rating: 25] Favorites ----------- Power Ion Engine Engine Ion Engine Propulsion Light Treads Treads Light Treads Utility Light Armor Plating Device Self-contained Transmogrifier Storage Large Storage Unit Protection Light Armor Plating Weapon Light Assault Rifle Energy Gun EM Pulse Gun Energy Cannon Advanced Beam Cannon Ballistic Gun Light Assault Rifle Ballistic Cannon Battle Cannon Launcher Grenade Launcher Build | -11 -10 -9 -8 ------- Run | Yrd Mat Mat Mat Slots Evolved 4 | . . 2 2 Power . | . . . . Propulsion . | . . . . Utility 4 | . . 2 2 Weapon . | . . . . Parts Attached 27 | 6 5 9 7 Power 4 | 1 . 3 . Engine 4 | 1 . 3 . Core . | . . . . Reactor . | . . . . Propulsion 4 | 2 . 1 1 Treads 4 | 2 . 1 1 Leg . | . . . . Wheel . | . . . . Hover . | . . . . Flight . | . . . . Utility 10 | 1 2 3 4 Device 2 | . . . 2 Storage 2 | 1 1 . . Processor . | . . . . Hackware . | . . . . Protection 6 | . 1 3 2 Artifact . | . . . . Weapon 9 | 2 3 2 2 Energy Gun 5 | 1 1 1 2 Energy Cannon 1 | . . 1 . Ballistic Gun 1 | 1 . . . Ballistic Cannon . | . . . . Launcher 2 | . 2 . . Special Weapon . | . . . . Impact Weapon . | . . . . Slashing Weapon . | . . . . Piercing Weapon . | . . . . Special Melee Weapon . | . . . . Unidentified Prototypes 1 | . . 1 . Parts Lost 8 | . . 2 6 Power 1 | . . 1 . Propulsion 2 | . . 1 1 Utility 3 | . . . 3 Weapon 2 | . . . 2 Highest Loss Streak 4 | . . 1 4 To Critical Strikes . | . . . . Average Backups 6 | . 4 8 10 Power 1 | . 1 . 2 Propulsion . | . . . 2 Utility 2 | . 1 4 4 Weapon 1 | . 1 2 1 Tool/Special . | . . . . Unused Backups 6 | . . . 6 Power 1 | . . . 1 Propulsion 2 | . . . 2 Utility 3 | . . . 3 Weapon . | . . . . Tool/Special . | . . . . Average Slot Usage (%) 95 | . 98 92 88 Engine 11 | . 14 10 4 Treads 24 | . 28 22 18 Device 7 | . . 14 15 Storage 12 | . 14 11 9 Protection 15 | . 12 18 24 Energy Gun 9 | . 13 1 11 Ballistic Gun 11 | . 13 11 3 Ballistic Cannon 1 | . . 2 . Peak Build Rating 25 | 6 18 22 25 Average Rating 12 | 4 7 18 22 On Entrance 11 | . 6 18 21 Avg Prop Armor Cover (%) . | . . . . Naked Turns . | . . . . Heaviest Build 40 | 13 31 35 40 Greatest Support 46 | 40 40 46 40 Greatest Overweight (x) . | . . . . Average Overweight (x) . | . . . . Largest Inventory Capacity 15 | 8 15 15 15 Average Capacity 12 | 7 9 15 15 Most Carried 14 | 1 8 13 14 Average Carried 6 | . 4 8 10 Final Capacity 15 | 8 15 15 15 Final Carried 13 | 1 8 13 10 Transmogrified Parts 2 | . 1 1 . Integrity Recovered 1 | . . 1 . Class Distribution -------------------- 89% | Mutant 10% | Scavenger-Mutant Dominant Class ---------------- Mutant | -10/Materials Mutant | -9/Materials Scavenger-Mutant | -8/Materials Resources | -11 -10 -9 -8 ----------- Run | Yrd Mat Mat Mat Matter Collected 621 | 211 184 142 84 Remotely . | . . . . Salvage Created 918 | . 349 181 388 Parts 53 | . 20 14 19 Haulers Intercepted 1 | . 1 . . Recyclers Shooed . | . . . . Parts Field Recycled . | . . . . Retrieved Matter . | . . . . Parts Self-Destructed . | . . . . Prevented . | . . . . Parts Restored . | . . . . Kills | -11 -10 -9 -8 ------- Run | Yrd Mat Mat Mat Combat Hostiles Destroyed 27 | . 9 3 15 Guns 14 | . 7 3 4 AOE 13 | . 2 . 11 Classes Destroyed 7 | . 3 2 2 Builder 1 | . . . 1 Hauler 1 | . 1 . . Watcher 1 | . . 1 . Swarmer 6 | . 3 . 3 Grunt 16 | . 6 . 10 Brawler 1 | . . . 1 Sentry 4 | . . 3 1 Best Kill Streak 7 | . 3 1 7 Combat Bots Only 7 | . 3 1 7 Max Kills in Single Turn 2 | . 2 1 2 Gunslinging . | . . . . Exploded 2 | . 2 . 2 Melee . | . . . . Uniques/NPCs Destroyed . | . . . . Combat | -11 -10 -9 -8 -------- Run | Yrd Mat Mat Mat Hostile Shots Fired 147 | . 30 40 77 Missed 44 | . 10 9 25 Hits 103 | . 20 31 52 Projectile 103 | . 20 31 52 Critical Strikes 5 | . . 2 3 Damage Taken 1534 | . 227 461 846 Core 188 | . 14 87 87 Absorbed by Shields . | . . . . Redirected to Shielding 37 | . . 19 18 Core Remaining (%) 80 | 100 86 56 . Volleys Fired 127 | . 53 32 42 Largest 2 | . 2 2 2 Hottest 121 | . 60 53 121 Shots Fired 174 | . 80 34 60 Gun 151 | . 78 32 41 Cannon 2 | . . 2 . Launcher 21 | . 2 . 19 Special . | . . . . Kinetic 87 | . 45 34 8 Thermal 33 | . . . 33 Explosive 21 | . 2 . 19 Electromagnetic 33 | . 33 . . Robot Hit Streak 17 | . 7 13 17 Robot Miss Streak 4 | . 4 2 2 Penetration Max . | . . . . Secondary Targets . | . . . . Shots Hit Robots 113 | . 50 29 34 Core Hits 71 | . 20 11 40 Critical Kills 1 | . . 1 . Critical Parts Destroyed . | . . . . Critical Strikes 4 | . 1 1 2 Burn 2 | . . . 2 Destroy 1 | . . 1 . Corrupt 1 | . 1 . . Melee Attacks . | . . . . Impact . | . . . . Slashing . | . . . . Piercing . | . . . . Sneak Attacks . | . . . . Combat Hostiles . | . . . . Follow-up Attacks . | . . . . Damage Inflicted 2521 | . 636 239 1646 Guns 1125 | . 489 219 417 Cannons 20 | . . 20 . Explosions 1376 | . 147 . 1229 Melee . | . . . . Ramming . | . . . . Kinetic 516 | . 228 239 49 Thermal 389 | . 21 . 368 Explosive 1355 | . 126 . 1229 Electromagnetic 261 | . 261 . . Impact . | . . . . Slashing . | . . . . Piercing . | . . . . Highest Corruption . | . . . . Average Corruption . | . . . . Corruption Purged . | . . . . Corruption Blocked . | . . . . Overload Shots . | . . . . Overflow Damage 78 | . 20 . 58 Projectiles . | . . . . Explosions 78 | . 20 . 58 Melee . | . . . . Knockbacks . | . . . . Impact . | . . . . Kinetic . | . . . . Secondary . | . . . . Self-Inflicted Damage 63 | . 19 . 44 Shots 5 | . 1 . 4 Rammed . | . . . . Targets Rammed . | . . . . Kicked . | . . . . Crushed . | . . . . Highest Temperature 248 | . 124 248 219 Average Temperature 51 | . 44 57 61 Received Heat Transfer 732 | . 93 180 459 Siege Activations . | . . . . Martial Activations . | . . . . Shielding Activations . | . . . . Robots Disrupted . | . . . . Combat Hostiles . | . . . . Robots Corrupted . | . . . . Combat Hostiles . | . . . . Parts Fried . | . . . . Impact Corruptions . | . . . . Robots Melted . | . . . . Combat Hostiles . | . . . . Parts Melted 1 | . . . 1 Heat Transferred 1123 | . 50 . 1073 Parts Sabotaged . | . . . . Parts Stolen . | . . . . Parts Stripped . | . . . . Power Chain Reactions 1 | . 1 . . Alert | -11 -10 -9 -8 ------- Run | Yrd Mat Mat Mat Maximum Alert Level 1 | . . . 1 Low Security (%) 95 | 100 100 100 69 Level 1 4 | . . . 30 Level 2 . | . . . . Level 3 . | . . . . Level 4 . | . . . . Level 5 . | . . . . High Security . | . . . . Max Security . | . . . . Peak Influence 318 | . 73 35 318 Initial 9 | . . 9 . Average 28 | . 19 8 109 Influence Increases 841 | . 279 117 445 Destroy 0b10 Robot/C 540 | . 180 60 300 Destroy 0b10 Robot/NC 15 | . 5 5 5 Destroy Leader 134 | . 42 32 60 Successful Hack 22 | . 17 5 . Disable Machine 15 | . . . 15 Destroy Structure 55 | . 20 . 35 Partial Spotted 15 | . . 15 . Lose Combat Pursuer 45 | . 15 . 30 Influence Decreases 533 | . 256 140 137 Entered New Map 14 | . . 14 . Time Decay 466 | . 256 120 90 Lost Part 53 | . . 6 47 Squads Dispatched 5 | . 2 . 3 Investigation . | . . . . Extermination . | . . . . Reinforcement 5 | . 2 . 3 Assault . | . . . . Garrison . | . . . . Intercept . | . . . . Searches Triggered . | . . . . Construction Impeded 1 | . . . 1 Haulers Reinforced . | . . . . Active Scanning Responses . | . . . . Cargo Convoy Interrupts . | . . . . Stealth | -11 -10 -9 -8 --------- Run | Yrd Mat Mat Mat Distress Signals 4 | . 1 . 3 Communications Jammed . | . . . . Distress Signals . | . . . . Times Spotted 45 | . 17 6 22 Peak Tracking Total 7 | . 5 2 7 Tactical Retreats 3 | . 1 . 2 Traps | -11 -10 -9 -8 ------- Run | Yrd Mat Mat Mat Traps Triggered 1 | . . 1 . Indirectly . | . . . . Trap Hack Attempts . | . . . . Triggered . | . . . . Disarmed . | . . . . Reprogrammed . | . . . . Reused . | . . . . Traps Extracted . | . . . . Installed . | . . . . Triggered . | . . . . Machines | -11 -10 -9 -8 ---------- Run | Yrd Mat Mat Mat Machines Disabled 1 | . . . 1 Max in Single Turn 1 | . . . 1 Machines Repaired . | . . . . Machines Dismantled . | . . . . Machines Sabotaged . | . . . . Overloaded Fab Kills . | . . . . Hacking | -11 -10 -9 -8 --------- Run | Yrd Mat Mat Mat Machines Accessed 9 | . 5 3 1 Terminals 9 | . 5 3 1 Fabricators . | . . . . Repair Stations . | . . . . Recycling Units . | . . . . Scanalyzers . | . . . . Garrison Access . | . . . . Total Hacks 22 | . 11 10 1 Successful 12 | . 8 4 . Failed 10 | . 3 6 1 Catastrophic . | . . . . Database Lockouts . | . . . . Manual 13 | . 9 3 1 Terminals 22 | . 11 10 1 Fabricators . | . . . . Repair Stations . | . . . . Recycling Units . | . . . . Scanalyzers . | . . . . Garrison Access . | . . . . Terminal Hacks 6 | . 3 3 . Prototype ID Bank 2 | . 1 1 . Locate Traps 4 | . 2 2 . Fabricator Hacks . | . . . . Repair Station Hacks . | . . . . Recycling Unit Hacks . | . . . . Scanalyzer . | . . . . Garrison Access Hacks . | . . . . Unauthorized Hacks 6 | . 5 1 . Terminals 6 | . 5 1 . Botnet 2 | . 1 1 . Skim 4 | . 4 . . Fabricators . | . . . . Repair Stations . | . . . . Recycling Units . | . . . . Scanalyzers . | . . . . Garrison Access . | . . . . Data Cores Recovered . | . . . . Used . | . . . . Hacking Detections 7 | . 3 3 1 Full Trace Events . | . . . . Feedback Events . | . . . . Feedback Blocked . | . . . . Robot Schematics Acquired . | . . . . Robots Built . | . . . . Authchips . | . . . . Time . | . . . . Total Robot Build Rating . | . . . . Part Schematics Acquired . | . . . . Parts Built . | . . . . Authchips . | . . . . Time . | . . . . Total Part Build Rating . | . . . . Part Studies Acquired . | . . . . Parts Repaired . | . . . . Time . | . . . . Parts Recycled . | . . . . Recycled Matter . | . . . . Retrieved Matter . | . . . . Retrieved Components . | . . . . Parts Scanalyzed . | . . . . Part Schematics Acquired . | . . . . Parts Damaged . | . . . . Bothacking | -11 -10 -9 -8 ------------ Run | Yrd Mat Mat Mat Used RIF Installer . | . . . . Robots Hacked . | . . . . Non-combat . | . . . . Combat . | . . . . Robot Hacks Applied . | . . . . Relay Couplers Released . | . . . . Fabnet Peak Effective % . | . . . . Robots Rewired . | . . . . Allies Hacked . | . . . . Hacks Repelled . | . . . . Allies | -11 -10 -9 -8 -------- Run | Yrd Mat Mat Mat Total Allies . | . . . . Largest Group . | . . . . Highest-Rated Group . | . . . . Highest-Rated Ally . | . . . . Total Orders . | . . . . Ally Attacks . | . . . . Total Damage . | . . . . Kills . | . . . . Allies Corrupted . | . . . . Allies Melted . | . . . . X0-1V1 Amusement Gains 16 | . 15 1 . Average Entertainment 15 | . 28 18 8 Good Acts 4 | . . 3 1 Bad Acts 3 | . . 1 2 Intel | -11 -10 -9 -8 ------- Run | Yrd Mat Mat Mat Active Infowar (turns) . | . . . . Robot Analysis Total . | . . . . Derelict Logs Recovered . | . . . . Drone Launches . | . . . . Drone Recoveries . | . . . . Exploration | -11 -10 -9 -8 ------------- Run | Yrd Mat Mat Mat Turns Passed 1958 | 68 1050 560 280 Spaces Moved 963 | 41 559 269 94 Core 6 | 6 . . . Treads 957 | 35 559 269 94 Legs . | . . . . Wheels . | . . . . Hover . | . . . . Flight . | . . . . Fastest Speed 50 | 50 160 160 160 Average Speed 159 | 143 160 160 160 Slowest Speed 160 | 160 160 160 160 Overloaded Moves . | . . . . Propulsion Burnouts . | . . . . Robots Hopped . | . . . . Potential Cave-ins . | . . . . Cave-ins Triggered . | . . . . Exploration Rate (%) 36 | 3 92 33 17 Regions Visited 3 Branch Regions . Pre-discovered Areas . | . . . . Known Exits Taken 1 | . . 1 . Unknown Exits Taken 2 | 1 1 . . Scrap Searched . | . . . . Spaces Dug . | . . . . Terrain Destroyed 61 | . 17 . 44 Melee . | . . . . Projectile . | . . . . AOE 61 | . 17 . 44 Terrain Rammed . | . . . . Walls Destroyed . | . . . . Machines Disabled . | . . . . Actions | -11 -10 -9 -8 --------- Run | Yrd Mat Mat Mat Total 1221 | 47 642 369 163 Wait 71 | . 13 47 11 Move 960 | 40 558 268 94 Hop . | . . . . Pick Up 20 | 1 8 9 2 Fast Attach 11 | 6 . 4 1 Attach 12 | . 1 4 7 Detach 2 | . . . 2 Swap 13 | . 6 3 4 Drop 5 | . 3 2 . Fire 127 | . 53 32 42 Melee . | . . . . Ram . | . . . . Kick . | . . . . Crush . | . . . . Escape Stasis . | . . . . Rewire . | . . . . Trap . | . . . . Miscellaneous . | . . . . Route ------- -11/Scrapyard -10/Materials (discovered 5 exits: *Mat x3 / [*Min] / [*Sub]) -9/Materials (discovered 2 exits: *Mat x2) -8/Materials History --------- Turn | Location | Event 8 | -11/Scrapyard | Discovered new exit (range 15) 69 | -11/Scrapyard | Entered Materials 312 | -10/Materials | Build established: Mutant 320 | -10/Materials | Discovered new exit (range 4) 639 | -10/Materials | Discovered new exit (range 14) 902 | -10/Materials | Discovered new exit (range 9) 999 | -10/Materials | Discovered new exit (range 16) 1030 | -10/Materials | Discovered new exit (range 6) 1040 | -10/Materials | Made a sacrifice at D.C.S.S. Altar Unit 1040 | -10/Materials | Forcibly received Sfc. Transmogifier from X0-1V1 1119 | -10/Materials | Entered another Materials area 1119 | -9/Materials | Evolved 2 slots: Utility x2 1392 | -9/Materials | Melee accuracy permanently improved by X0-1V1 (+5%; -50 max core) 1647 | -9/Materials | Identified exit to Materials 1647 | -9/Materials | X0-1V1 revealed exit location to -8/Materials 1651 | -9/Materials | Discovered exit to Materials (range 15) 1679 | -9/Materials | Entered another Materials area 1679 | -8/Materials | Evolved 2 slots: Utility x2 1724 | -8/Materials | Ranged accuracy permanently improved by X0-1V1 (+5%; -50 max core) 1834 | -8/Materials | Lost 4 parts (1n2u1w) 1880 | -8/Materials | Destroyed 7 combat bots 1881 | -8/Materials | X0-1V1 vaporized surrounding terrain (radius 15) 1959 | -8/Materials | Self-destructed Last Messages --------------- 01929_ U-05 Engineer sends out distress signal. 01934_ Lgt. Armor Plating destroyed. 01936_ U-05 Engineer lays Concrete. 01939_ G-47 Trooper destroyed. 01939_ U-05 Engineer builds a Wall. 01943_ U-05 Engineer lays Concrete. 01944_ W-25 Informer sends out distress signal. 01946_ U-05 Engineer builds a Wall. 01947_ Acquired 34 matter. 01950_ U-05 Engineer builds a Wall. 01950_ Acquired Particle Gun. 01952_ R-06 Scavenger inserts Flight Unit into recycling unit. 01954_ U-05 Engineer builds a Wall. 01954_ W-25 Informer sends out distress signal. 01955_ R-06 Scavenger inserts Lgt. Ion Engine into recycling unit. 01957_ R-06 Scavenger collects Aluminum Leg. 01958_ R-06 Scavenger inserts Lgt. Treads into recycling unit. Map ----- +----------------------------------------------------+ | ???????????????????????????########### """ | | ????????????????????????????## ##???#! """" | | ?????????????????????????? " ???# % """" | | ???????????????????????""" " ??# " %% """ | | ????????????????????? *" ???# """ | | ???????????????????#"""""!%! ??# = | | ??????????????????+"""" "[" """""##"" = #### #### | | ?????????????????? " " "# #??###??? | | ?????????????????? " " """ "# #???????? | | ??????????????????"" " " "T" "# # ?????? | | ??????????????????"" " " "" " ?????? | | ???????????????# """ " # " ! "" " ?????? | | ?????????????# # !; # "" " ????? | | ?????????????# #;;;; a # """"+""" """"#???? | | ?????????????# #???? | | ?????????????# % #???? | | ?????????????# "???? | | ?????????????# ! %#######""""""""""" #???? | | ?????????????# # # "" #???? | | ?????????????# r#u " # "" #???? | | ?????????????# """ # "" +???? | | ????????#+#### " # "# #???? | | ????????? " # "# #???? | | ?????????????# #" #???? | | ??????????????# "" % # ???? | | ??????????????# g @ "" % # ???? | | ??????????????# g gr # "# +??? | | ??????????????# "Y" # " u### #??? | | ??????????? """ # ## %u ??? ???? | | ????????? ; ; T ###????????? | | ???????? #;;;;;; ; #??????????? | | ????????????######## ####### ## #??????????? | | ???????????????????# #??????##?# ##??????????? | | ???????????????????# #?????????? #???????????? | | ???????????????????# #??????????? #???????????? | | ???????????????????# #??????????? ????????????? | | ???????????????????#^^ #?????????????????????????? | | ???????????????????# #?????????????????????????? | | ???????????????????# #?????????????????????????? | | ???????????????????# ?????????????????????????? | | ???????????????????# ?????????????????????????? | | ???????????????????# ??????????????????????????? | | ????????????????????###??????????????????????????? | | ?????????????????????????????????????????????????? | | ?????????????????????????????????????????????????? | | ?????????????????????????????????????????????????? | | ?????????????????????????????????????????????????? | | ?????????????????????????????????????????????????? | | ?????????????????????????????????????????????????? | | ?????????????????????????????????????????????????? | +----------------------------------------------------+ Best States ------------- Heat Dissipation 41 Energy Generation 12 Energy Capacity 265 Matter Stores 300 Matter Capacity 300 Sight Range 16 Terrain Scan Density 10 Additional Mass Support 6 Armor Coverage 375 Core Shielding 20 Evasion (%) 40 Recoil Reduction 2 Item Schematics ----------------- None Robot Schematics ------------------ None Fabricated ------------ Nothing Repaired ---------- Nothing Studied --------- None Alien Tech Used ----------------- None Achievements -------------- None Challenges ------------ None Game ------ Seed ChainIonMembrane Manual? 0 Play Time 00:15:58 Cumulative 221.1 hours Start 2026.08.25 @ 13:10:11 End 2026.08.25 @ 13:26:23 Sessions 1 Manual Loads 0 Difficulty Rogue Special Mode None Game No. 142 Rogue 142 Adventurer 0 Explorer 0 Win Type - Total 4 Types 2/0/0/1/0/0/0/1/0/0 Lore% 57 Gallery% 72 Achievement% 55 Wizard Run 0 Options --------- Layout 2 ASCII 0 Keyboard 0 Movement Mouse Keybinds 0 Fullscreen 1 Font 32/SmallcapsGlow Map View 50x44 Zoom Use 0% Tactical HUD 1 Map Filters NONE Filters NONE Steam 1 RUN: d99e48a3-f157-4e86-b414-bd1fa45b137a